Workbook

Sheet Folha1
C3: TEER 2012/2013 | D3: 1º Ciclo do Ensino Básico
A6: Concelho | B6: Escola | C6: Nome do aluno | D6: Teórica (cot) | E6: Prática (nº de falhas) | F6: Prática (cotação) | G6: Total | H6: Apreciação
A7: Ribeira Brava | B7: EB1/PE da Serra de Água | C7: Mariana Aguiar | D7: 63 | F7: 100 | G7: =D7+F7 -> 163 | H7: 1º
A8: São Vicente | B8: EB1/PE da Boaventura | C8: Polly Jéssica Silva Pereira | D8: 66 | F8: 95 | G8: =D8+F8 -> 161 | H8: 2º
A9: Santa Cruz | B9: EB1/PE da Camacha | C9: Bernardo Rodrigues | D9: 57 | F9: 100 | G9: =D9+F9 -> 157
A10: Ponta do Sol | B10: EB1/PE Lombada | C10: André dos Santos Faria Relva | D10: 62 | F10: 95 | G10: =D10+F10 -> 157 | H10: 3º
A11: Calheta | B11: EB1/PE Estreito da Calheta | C11: José Teixeira | D11: 57 | F11: 100 | G11: =D11+F11 -> 157
A12: Santana | B12: EB1/PE de Santana | C12: Diogo Azevedo | D12: 61 | F12: 95 | G12: =D12+F12 -> 156
A13: Funchal | B13: EB1/PE Lombo Segundo | C13: Guilherme Fernandes | D13: 56 | F13: 100 | G13: =D13+F13 -> 156
A14: Câmara de Lobos | B14: EB1/PE do Foro | C14: Vanessa Costa | D14: 51 | F14: 100 | G14: =D14+F14 -> 151
A15: Machico | B15: EB1/PE Santo António da Serra | C15: César Tiago Vieira Gonçalves | D15: 47 | F15: 95 | G15: =D15+F15 -> 142
A16: Porto Moniz | B16: EB1/PE de Porto Moniz | C16: Margarida Marcos Osório | D16: 47 | F16: 90 | G16: =D16+F16 -> 137

Sheet Folha2
B1: TEER 2012/2013 | C1: 2º Ciclo do Ensino Básico
A3: Escola | B3: Nome do aluno | C3: Teórica (cot) | D3: Prática (nº de falhas) | E3: Prática (cotação) | F3: Total | G3: Apreciação
A4: Bartolomeu Perestrelo | B4: Gonçalo Rodrigues Pereira | C4: 85 | E4: =100-D4*5 -> 100 | F4: =C4+E4 -> 185 | G4: 1º
A5: Porto da Cruz | B5: Ricardo Ramos | C5: 85 | E5: 95 | F5: =C5+E5 -> 180 | G5: 2º
A6: Padre Manuel Álvares | B6: Carolina Isabel Duarte Aguiar | C6: 80 | E6: =100-D6*5 -> 100 | F6: =C6+E6 -> 180 | G6: 3º
A7: Alfredo Ferreira Nóbrega Júnior | B7: Andreia Correia | C7: 82 | E7: 95 | F7: =C7+E7 -> 177
A8: Horácio Bento Gouveia | B8: Beatriz Fabiana Faria Sousa | C8: 76 | E8: =100-D8*5 -> 100 | F8: =C8+E8 -> 176
A9: Estreito de Câmara de Lobos | B9: Mateus Rodrigues. | C9: 80 | E9: 95 | F9: =C9+E9 -> 175
A10: Machico | B10: Marco Nóbrega | C10: 72 | E10: =100-D10*5 -> 100 | F10: =C10+E10 -> 172
A11: Infante D. Henrique | B11: Vicente Pestana Câmara | C11: 72 | E11: =100-D11*5 -> 100 | F11: =C11+E11 -> 172
A12: Lucinda Andrade | B12: Joseph Cristóvão Teixeira Freitas | C12: 76 | D12: 0 | E12: 95 | F12: =C12+E12 -> 171
A13: Ângelo Augusto da Silva | B13: Diana Sofia Ponte Camacho | C13: 81 | E13: 90 | F13: =C13+E13 -> 171
A14: Caniço | B14: José Rodrigo Gonçalves Mano | C14: 71 | E14: =100-D14*5 -> 100 | F14: =C14+E14 -> 171
A15: Ponta do Sol | B15: Sebastien Gonçalves | C15: 71 | E15: =100-D15*5 -> 100 | F15: =C15+E15 -> 171
A16: Calheta | B16: Bruno Timóteo da Silva Gomes | C16: 70 | E16: =100-D16*5 -> 100 | F16: =C16+E16 -> 170
A17: Santa Cruz | B17: Vítor Gonçalves | C17: 67 | E17: =100-D17*5 -> 100 | F17: =C17+E17 -> 167
A18: São Jorge | B18: António Edgar Martins Freitas | C18: 71 | E18: 95 | F18: =C18+E18 -> 166
A19: Louros | B19: Tiago Freitas | C19: 66 | E19: =100-D19*5 -> 100 | F19: =C19+E19 -> 166
A20: Santo António | B20: Beatriz Henriques | C20: 70 | E20: 95 | F20: =C20+E20 -> 165
A21: Campanário | B21: Ilídio Rodrigo Branco Vicente | C21: 63 | E21: =100-D21*5 -> 100 | F21: =C21+E21 -> 163
A22: Torre | B22: Bruno Pestana | C22: 62 | E22: =100-D22*5 -> 100 | F22: =C22+E22 -> 162
A23: São Roque - Eduardo Brazão Castro | B23: Diogo Dinarte Pita Temtem | C23: 61 | E23: 100 | F23: =C23+E23 -> 161
A24: Carmo - Luís Maurílio Silva Dantas | B24: Nuno José Silva Oliveira | C24: 76 | E24: 85 | F24: =C24+E24 -> 161
A25: Santana | B25: Hugo Luís Martins Silva | C25: 71 | E25: 90 | F25: =C25+E25 -> 161
A26: Francisco M S Barreto | B26: Daniela Pombo | C26: 64 | E26: 90 | F26: =C26+E26 -> 154
A27: Gonçalves Zarco | B27: João Bettencourt | C27: 40 | E27: 95 | F27: =C27+E27 -> 135
A28: Caniçal | B28: João Lopes | C28: 40 | E28: 95 | F28: =C28+E28 -> 135
A29: Curral das Freiras | B29: Pedro Diogo Camacho Gonçalves | C29: 48 | E29: 85 | F29: =C29+E29 -> 133

Sheet Folha3
B1: TEER 2012/2013 | C1: 3º Ciclo do Ensino Básico
A3: Escola | B3: Nome do aluno | C3: Teórica (cot) | D3: Prática (nº de falhas) | E3: Prática (cotação) | F3: Total | G3: Apreciação
A4: São Roque - Eduardo Brazão Castro | B4: Rúben Tiago Sousa Lucas | C4: 96 | E4: =100-D4*5 -> 100 | F4: =C4+E4 -> 196 | G4: 1º
A5: Bartolomeu Perestrelo | B5: Rúben Freitas | C5: 87 | E5: =100-D5*5 -> 100 | F5: =C5+E5 -> 187 | G5: 2º
A6: Horácio Bento Gouveia | B6: Andreia José Freitas Teles | C6: 91 | E6: 95 | F6: =C6+E6 -> 186 | G6: 3º
A7: Machico | B7: Gonçalo Vieira | C7: 78 | E7: =100-D7*5 -> 100 | F7: =C7+E7 -> 178
A8: Infante D. Henrique | B8: João Álvaro Freitas Gonçalves | C8: 78 | E8: =100-D8*5 -> 100 | F8: =C8+E8 -> 178
A9: Santo António | B9: Francisco Olival | C9: 82 | E9: 95 | F9: =C9+E9 -> 177
A10: Caniço | B10: Gonçalo Andrade Góis | C10: 76 | E10: =100-D10*5 -> 100 | F10: =C10+E10 -> 176
A11: Francisco M S Barreto | B11: Pedro Jardim | C11: 73 | E11: =100-D11*5 -> 100 | F11: =C11+E11 -> 173
A12: Ângelo Augusto da Silva | B12: Tiago Luís | C12: 73 | E12: =100-D12*5 -> 100 | F12: =C12+E12 -> 173
A13: Campanário | B13: José Vares | C13: 78 | E13: 95 | F13: =C13+E13 -> 173
A14: Louros | B14: Alexandre Berenguer | C14: 82 | E14: 90 | F14: =C14+E14 -> 172
A15: Alfredo Ferreira Nóbrega Júnior | B15: Hugo Carvalho | C15: 69 | E15: =100-D15*5 -> 100 | F15: =C15+E15 -> 169
A16: Gonçalves Zarco | B16: João Vieira | C16: 69 | E16: =100-D16*5 -> 100 | F16: =C16+E16 -> 169
A17: Santana | B17: Leandro Coelho | C17: 69 | E17: =100-D17*5 -> 100 | F17: =C17+E17 -> 169
A18: Lucinda Andrade | B18: Pedro Luís Ferreira Fernandes | C18: 73 | D18: 0 | E18: 95 | F18: =C18+E18 -> 168
A19: Ponta do Sol | B19: Francisco Ribeiro | C19: 73 | E19: 95 | F19: =C19+E19 -> 168
A20: Curral das Freiras | B20: João André do Espírito Santo | C20: 73 | E20: 95 | F20: =C20+E20 -> 168
A21: São Jorge | B21: João Tomás Gonçalves Jesus | C21: 64 | E21: =100-D21*5 -> 100 | F21: =C21+E21 -> 164
A22: Torre | B22: João Martins | C22: 61 | E22: =100-D22*5 -> 100 | F22: =C22+E22 -> 161
A23: Calheta | B23: Alexandre Luís Moreira Lucas | C23: 60 | E23: =100-D23*5 -> 100 | F23: =C23+E23 -> 160
A24: Porto da Cruz | B24: Gonçalo Nuno Basílio Tavares | C24: 58 | E24: =100-D24*5 -> 100 | F24: =C24+E24 -> 158
A25: Caniçal | B25: Joana Vieira | C25: 60 | E25: 95 | F25: =C25+E25 -> 155
A26: Padre Manuel Álvares | B26: André Bernardo Gouveia | C26: 51 | E26: 95 | F26: =C26+E26 -> 146
A27: Santa Cruz | B27: Jorge Gouveia | C27: 60 | E27: 85 | F27: =C27+E27 -> 145
A28: Carmo - Luís Maurílio Silva Dantas | B28: Diogo Rafael dos Reis Soares | C28: 42 | E28: 95 | F28: =C28+E28 -> 137
A29: Estreito de Câmara de Lobos | B29: André Santos | E29: =100-D29*5 -> 100 | F29: =C29+E29 -> 100
